fUSD/lending_fUSD_20250313
["ID","MTS","AMOUNT","RATE_DAILY","PERIOD"]
[356063161,1741877479107,-500.0,0.00028433,18]
[356063162,1741877479118,-419.10842971,0.00028433,18]
[356063163,1741877479128,-798.69,0.00028433,18]
[356063164,1741877479138,-500.0,0.00028433,18]
[356063165,1741877479148,-500.0,0.00028433,18]
[356063166,1741877479158,-500.0,0.00028433,18]
[356063167,1741877479168,-500.0,0.00028433,18]
[356063168,1741877479178,-500.0,0.00028433,18]
[356063169,1741877479188,-500.0,0.00028433,18]
[356063170,1741877479199,-500.0,0.00028433,18]
[356063171,1741877479209,-500.0,0.00028433,18]
[356063172,1741877479221,-541.31,0.00028433,18]
[356063173,1741877479233,-500.0,0.00028433,18]
[356063174,1741877479244,-500.0,0.00028433,18]
[356063175,1741877479255,-500.0,0.00028433,18]
[356063176,1741877479266,-598.07,0.00028433,18]
[356063177,1741877479278,-654.57,0.00028433,18]
[356063178,1741877479296,-500.0,0.00028433,18]
[356063179,1741877479307,-504.3147317,0.00028433,18]
[356063180,1741877479318,-500.0,0.00028433,18]
[356063181,1741877479329,-691.39,0.00028433,18]
[356063182,1741877479339,-500.0,0.00028433,18]
[356063183,1741877479349,-719.79,0.00028433,18]
[356063184,1741877479360,-500.0,0.00028433,18]
[356063185,1741877479370,-500.0,0.00028433,18]
[356063186,1741877479380,-500.0,0.00028433,18]
[356063187,1741877479391,-500.0,0.00028433,18]
[356063188,1741877479401,-500.0,0.00028433,18]
[356063189,1741877479411,-543.25,0.00028433,18]
[356063190,1741877479421,-500.0,0.00028433,18]
[356063191,1741877479431,-753.81,0.00028433,18]
[356063192,1741877479441,-500.0,0.00028433,18]
[356063193,1741877479450,-829.63,0.00028433,18]
[356063194,1741877479460,-520.97,0.00028433,18]
[356063195,1741877479470,-500.0,0.00028433,18]
[356063196,1741877479481,-500.0,0.00028433,18]
[356063197,1741877479491,-500.0,0.00028433,18]
[356063198,1741877479501,-500.0,0.00028433,18]
[356063199,1741877479511,-500.0,0.00028433,18]
[356063200,1741877479521,-628.41,0.00028433,18]
[356063201,1741877479530,-500.0,0.00028433,18]
[356063202,1741877479546,-500.0,0.00028433,18]
[356063203,1741877479556,-559.71,0.00028433,18]
[356063204,1741877479565,-500.0,0.00028433,18]
[356063205,1741877479575,-500.0,0.00028433,18]
[356063206,1741877479584,-742.58,0.00028433,18]
[356063207,1741877479594,-500.0,0.00028433,18]
[356063208,1741877479604,-500.0,0.00028433,18]
[356063209,1741877479613,-500.0,0.00028433,18]
[356063210,1741877479622,-500.0,0.00028433,18]
[356063211,1741877479631,-500.0,0.00028433,18]
[356063212,1741877479641,-500.0,0.00028433,18]
[356063213,1741877479650,-500.0,0.00028433,18]
[356063214,1741877479660,-597.17,0.00028433,18]
[356063215,1741877479670,-500.0,0.00028433,18]
[356063216,1741877479679,-500.0,0.00028433,18]
[356063217,1741877479689,-500.0,0.00028433,18]
[356063218,1741877479698,-841.6,0.00028433,18]
[356063219,1741877479707,-863.22,0.00028433,18]
[356063220,1741877479717,-500.0,0.00028433,18]
[356063221,1741877479727,-500.0,0.00028433,18]
[356063222,1741877479736,-677.32,0.00028433,18]
[356063223,1741877479746,-500.0,0.00028433,18]
[356063224,1741877479756,-500.0,0.00028433,18]
[356063225,1741877479765,-1079.98,0.00028433,18]
[356063226,1741877479774,-500.0,0.00028433,18]
[356063227,1741877479784,-500.0,0.00028433,18]
[356063228,1741877479800,-502.92,0.00028433,18]
[356063229,1741877479809,-353.13678776,0.00028433,18]
[356063230,1741877479819,-500.0,0.00028433,18]
[356063231,1741877479835,-701.64,0.00028433,18]
[356063232,1741877479845,-500.0,0.00028433,18]
[356063233,1741877479854,-500.0,0.00028433,18]
[356063234,1741877479863,-500.0,0.00028433,18]
[356063235,1741877479874,-500.0,0.00028433,18]
[356063236,1741877479884,-558.34,0.00028433,18]
[356063237,1741877479894,-409.31785057,0.00028433,18]
[356063238,1741877479904,-500.0,0.00028433,18]
[356063239,1741877479914,-500.0,0.00028433,18]
[356063240,1741877479923,-500.0,0.00028433,18]
[356063241,1741877479932,-500.0,0.00028433,18]
[356063242,1741877479941,-500.0,0.00028433,18]
[356063243,1741877479951,-500.0,0.00028433,18]
[356063244,1741877479961,-590.79,0.00028433,18]
[356063245,1741877479971,-616.64,0.00028433,18]
[356063246,1741877479980,-500.0,0.00028433,18]
[356063247,1741877479990,-500.0,0.00028433,18]
[356063248,1741877479999,-683.37,0.00028433,18]
[356063249,1741877480008,-500.0,0.00028433,18]
[356063250,1741877480019,-500.0,0.00028433,18]
[356063251,1741877480028,-500.0,0.00028433,18]
[356063252,1741877480041,-500.0,0.00028433,18]
[356063253,1741877480051,-500.0,0.00028433,18]
[356063254,1741877480060,-500.0,0.00028433,18]
[356063255,1741877480069,-500.0,0.00028433,18]
[356063256,1741877480079,-500.0,0.00028433,18]
[356063257,1741877480088,-500.0,0.00028433,18]
[356063258,1741877480097,-500.0,0.00028433,18]
[356063259,1741877480106,-1197.54,0.00028433,18]
[356063260,1741877480116,-437.52200589,0.00028433,18]
[356063261,1741877480125,-500.0,0.00028433,18]
[356063262,1741877480134,-500.0,0.00028433,18]
[356063263,1741877480143,-500.0,0.00028433,18]
[356063264,1741877480153,-603.19,0.00028433,18]
[356063265,1741877480162,-500.0,0.00028433,18]
[356063266,1741877480172,-500.0,0.00028433,18]
[356063267,1741877480181,-500.0,0.00028433,18]
[356063268,1741877480190,-500.0,0.00028433,18]
[356063269,1741877480199,-500.0,0.00028433,18]
[356063270,1741877480209,-500.0,0.00028433,18]
[356063271,1741877480218,-500.0,0.00028433,18]
[356063272,1741877480227,-500.0,0.00028433,18]
[356063273,1741877480236,-500.0,0.00028433,18]
[356063274,1741877480246,-500.0,0.00028433,18]
[356063275,1741877480255,-504.8207805,0.00028433,18]
[356063276,1741877480264,-889.61,0.00028433,18]
[356063277,1741877480275,-500.0,0.00028433,18]
[356063278,1741877480284,-520.42,0.00028433,18]
[356063279,1741877480297,-500.0,0.00028433,18]
[356063280,1741877480306,-537.09,0.00028433,18]
[356063281,1741877480316,-500.0,0.00028433,18]
[356063282,1741877480325,-500.0,0.00028433,18]
[356063283,1741877480334,-500.0,0.00028433,18]
[356063284,1741877480343,-500.0,0.00028433,18]
[356063285,1741877480352,-500.0,0.00028433,18]
[356063286,1741877480361,-1443.64,0.00028433,18]
[356063287,1741877480370,-500.0,0.00028433,18]
[356063288,1741877480380,-362.39720781,0.00028433,18]
[356063289,1741877480389,-500.0,0.00028433,18]
[356063290,1741877480398,-500.0,0.00028433,18]
[356063291,1741877480407,-877.63,0.00028433,18]
[356063292,1741877480416,-500.0,0.00028433,18]
[356063293,1741877480426,-500.0,0.00028433,18]
[356063294,1741877480435,-547.45,0.00028433,18]
[356063295,1741877480444,-500.0,0.00028433,18]
[356063296,1741877480454,-500.0,0.00028433,18]
[356063297,1741877480463,-543.74,0.00028433,18]
[356063298,1741877480472,-2624.51,0.00028433,18]
[356063299,1741877480481,-877.5,0.00028433,18]
[356063300,1741877480491,-500.0,0.00028433,18]
[356063301,1741877480500,-507.27401307,0.00028433,18]
[356063302,1741877480511,-612.61,0.00028433,18]
[356063303,1741877480520,-504.65698903,0.00028433,18]
[356063304,1741877480530,-841.51,0.00028433,18]
[356063305,1741877480543,-500.0,0.00028433,18]
[356063306,1741877480552,-654.97,0.00028433,18]
[356063307,1741877480561,-367.79074499,0.00028433,18]
[356063308,1741877480570,-725.3,0.00028433,18]
[356063309,1741877480580,-500.0,0.00028433,18]
[356063310,1741877480589,-500.0,0.00028433,18]
[356063311,1741877480598,-508.73,0.00028433,18]
[356063312,1741877480607,-500.0,0.00028433,18]
[356063313,1741877480616,-546.0,0.00028433,18]
[356063314,1741877480625,-911.58,0.00028433,18]
[356063315,1741877480635,-500.0,0.00028433,18]
[356063316,1741877480644,-989.11,0.00028433,18]
[356063317,1741877480653,-653.78,0.00028433,18]
[356063318,1741877480662,-5014.88,0.00028433,18]
[356063319,1741877480671,-568.24,0.00028433,18]
[356063320,1741877480680,-500.0,0.00028433,18]
[356063321,1741877480689,-500.0,0.00028433,18]
[356063322,1741877480698,-512.35,0.00028433,18]
[356063323,1741877480707,-1301.45,0.00028433,18]
[356063324,1741877480716,-557.36,0.00028433,18]
[356063325,1741877480725,-500.0,0.00028433,18]
[356063326,1741877480734,-500.0,0.00028433,18]
[356063327,1741877480743,-630.4,0.00028433,18]
[356063328,1741877480752,-500.0,0.00028433,18]
[356063329,1741877480761,-804.68,0.00028433,18]
[356063330,1741877480770,-500.0,0.00028433,18]
[356063331,1741877480778,-631.05,0.00028433,18]
[356063332,1741877480790,-877.44,0.00028433,18]
[356063333,1741877480799,-589.78,0.00028433,18]
[356063334,1741877480952,-765.33,0.00028433,18]
[356063335,1741877480962,-1049.42,0.00028433,18]
[356063336,1741877480971,-500.0,0.00028433,18]
[356063337,1741877480981,-630.74,0.00028433,18]
[356063338,1741877480990,-500.0,0.00028433,18]
[356063339,1741877480999,-500.0,0.00028433,18]
[356063340,1741877481009,-500.0,0.00028433,18]
[356063341,1741877481018,-500.0,0.00028433,18]
[356063342,1741877481028,-1528.16,0.00028433,18]
[356063343,1741877481039,-500.0,0.00028433,18]
[356063344,1741877481049,-500.0,0.00028433,18]
[356063345,1741877481058,-867.081518,0.00028433,18]
[356063346,1741877481067,-500.0,0.00028433,18]
[356063347,1741877481077,-500.0,0.00028433,18]
[356063348,1741877481086,-845.43,0.00028433,18]
[356063349,1741877481095,-545.3,0.00028433,18]
[356063350,1741877481104,-1509.59,0.00028433,18]
[356063351,1741877481113,-6022.95,0.00028433,2]
[356063352,1741877481123,-500.0,0.00028433,18]
[356063353,1741877481133,-500.0,0.00028433,18]
[356063354,1741877481143,-1152.01,0.00028433,18]
[356063355,1741877481153,-500.0,0.00028433,18]
[356063356,1741877481163,-1191.84,0.00028433,18]
[356063357,1741877481173,-1254.42,0.00028433,18]
[356063358,1741877481183,-500.0,0.00028433,18]
[356063359,1741877481192,-778.61,0.00028433,18]
[356063360,1741877481201,-861.55,0.00028433,18]
[356063361,1741877481211,-732.88,0.00028433,18]
[356063362,1741877481220,-349.77732497,0.00028433,18]
[356063363,1741877481229,-828.9,0.00028433,18]
[356063364,1741877481238,-500.0,0.00028433,18]
[356063365,1741877481248,-500.0,0.00028433,18]
[356063366,1741877481257,-500.0,0.00028433,18]
[356063367,1741877481267,-515.71,0.00028433,18]
[356063368,1741877481277,-500.0,0.00028433,18]
[356063369,1741877481286,-500.0,0.00028433,18]
[356063370,1741877481298,-2250.74,0.00028433,18]
[356063371,1741877481307,-615.62035137,0.00028433,18]
[356063372,1741877481316,-615.24,0.00028433,18]
[356063373,1741877481325,-500.0,0.00028433,18]
[356063374,1741877481334,-611.51,0.00028433,18]
[356063375,1741877481344,-943.15,0.00028433,18]
[356063376,1741877481354,-500.0,0.00028433,18]
[356063377,1741877481364,-2877.83,0.00028433,18]
[356063378,1741877481373,-500.0,0.00028433,18]
[356063379,1741877481382,-500.0,0.00028433,18]
[356063380,1741877481391,-500.0,0.00028433,18]
[356063381,1741877481401,-968.62,0.00028433,18]
[356063382,1741877481410,-517.25,0.00028433,18]
[356063383,1741877481419,-500.0,0.00028433,18]
[356063384,1741877481428,-500.0,0.00028433,18]
[356063385,1741877481438,-1936.13,0.00028433,18]
[356063386,1741877481447,-500.0,0.00028433,18]
[356063387,1741877481456,-500.0,0.00028433,18]
[356063388,1741877481466,-592.53,0.00028433,18]
[356063389,1741877481475,-500.0,0.00028433,18]
[356063390,1741877481485,-548.58,0.00028433,18]
[356063391,1741877481495,-500.0,0.00028433,18]
[356063392,1741877481505,-500.0,0.00028433,18]
[356063393,1741877481515,-506.57259664,0.00028433,18]
[356063394,1741877481524,-1850.13,0.00028433,18]
[356063395,1741877481534,-500.0,0.00028433,18]
[356063396,1741877481548,-503.83,0.00028433,18]
[356063397,1741877481558,-500.0,0.00028433,18]
[356063398,1741877481567,-2562.48,0.00028433,18]
[356063399,1741877481577,-500.0,0.00028433,18]
[356063400,1741877481587,-1591.35,0.00028433,18]
[356063401,1741877481596,-500.0,0.00028433,18]
[356063402,1741877481606,-299.64019824,0.00028433,18]
[356063403,1741877481615,-500.0,0.00028433,18]
[356063404,1741877481625,-2233.91,0.00028433,18]
[356063405,1741877481635,-500.0,0.00028433,18]
[356063406,1741877481644,-1531.67,0.00028433,18]
[356063407,1741877481654,-531.75,0.00028433,18]
[356063408,1741877481663,-1279.76,0.00028433,18]
[356063409,1741877481673,-500.0,0.00028433,18]
[356063410,1741877481682,-917.98,0.00028433,18]
[356063411,1741877481692,-500.0,0.00028433,18]
[356063412,1741877481702,-774.11,0.00028433,18]
[356063413,1741877481711,-745.19,0.00028433,18]
[356063414,1741877481721,-584.93,0.00028433,18]
[356063415,1741877481731,-1140.98,0.00028433,18]
[356063416,1741877481740,-500.0,0.00028433,18]
[356063417,1741877481749,-3142.78,0.00028433,18]
[356063418,1741877481758,-650.5,0.00028433,18]
[356063419,1741877481768,-500.0,0.00028433,18]
[356063420,1741877481777,-500.0,0.00028433,18]
[356063421,1741877481787,-1284.79,0.00028433,18]
[356063422,1741877481799,-500.0,0.00028433,18]
[356063423,1741877481808,-654.08,0.00028433,18]
[356063424,1741877481817,-1328.89,0.00028433,18]
[356063425,1741877481829,-919.06,0.00028433,18]
[356063426,1741877481839,-505.7960543,0.00028433,18]
[356063427,1741877481848,-673.07,0.00028433,18]
[356063428,1741877481857,-500.0,0.00028433,18]
[356063429,1741877481867,-750.81,0.00028433,18]
[356063430,1741877481877,-500.0,0.00028433,18]
[356063431,1741877481886,-1372.56,0.00028433,18]
[356063432,1741877481895,-620.6921325,0.00028433,18]
[356063433,1741877481904,-500.0,0.00028433,18]
[356063434,1741877481913,-500.0,0.00028433,18]
[356063435,1741877481923,-354.83,0.00028433,7]
[356063436,1741877481932,-1294.14,0.00028433,18]
[356063437,1741877481940,-500.0,0.00028433,18]
[356063438,1741877481949,-500.0,0.00028433,18]
[356063439,1741877481958,-1026.51,0.00028433,18]
[356063440,1741877481967,-663.96,0.00028433,18]
[356063441,1741877481976,-500.0,0.00028433,18]
[356063442,1741877481986,-500.0,0.00028433,18]
[356063443,1741877481994,-500.0,0.00028433,18]
[356063444,1741877482004,-1799.08,0.00028433,18]
[356063445,1741877482013,-607.97,0.00028433,10]
[356063446,1741877482022,-500.0,0.00028433,18]
[356063447,1741877482031,-1149.34,0.00028433,18]
[356063448,1741877482042,-500.0,0.00028433,18]
[356063449,1741877482051,-500.0,0.00028433,18]
[356063450,1741877482060,-345.44197797,0.00028433,18]
[356063451,1741877482075,-500.0,0.00028433,18]
[356063452,1741877482085,-500.0,0.00028433,18]
[356063453,1741877482095,-3134.61,0.00028433,18]
[356063454,1741877482103,-500.0,0.00028433,18]
[356063455,1741877482112,-500.0,0.00028433,18]
[356063456,1741877482122,-670.08,0.00028433,18]
[356063457,1741877482131,-500.0,0.00028433,18]
[356063458,1741877482139,-500.0,0.00028433,18]
[356063459,1741877482149,-500.0,0.00028433,18]
[356063460,1741877482158,-500.0,0.00028433,18]
[356063461,1741877482167,-500.0,0.00028433,18]
[356063462,1741877482177,-500.0,0.00028433,18]
[356063463,1741877482186,-500.0,0.00028433,18]
[356063464,1741877482195,-862.67,0.00028433,18]
[356063465,1741877482206,-500.0,0.00028433,18]
[356063466,1741877482215,-500.0,0.00028433,18]
[356063467,1741877482224,-1839.29,0.00028433,18]
[356063468,1741877482234,-795.32,0.00028433,18]
[356063469,1741877482243,-500.0,0.00028433,18]
[356063470,1741877482252,-500.0,0.00028433,18]
[356063471,1741877482262,-3917.63,0.00028433,18]
[356063472,1741877482271,-1131.1,0.00028433,18]
[356063473,1741877482282,-500.0,0.00028433,18]
[356063474,1741877482293,-514.25,0.00028433,18]
[356063475,1741877482303,-500.0,0.00028433,18]
[356063476,1741877482312,-500.0,0.00028433,18]
[356063477,1741877482322,-500.0,0.00028433,18]
[356063478,1741877482331,-805.12,0.00028433,18]
[356063479,1741877482340,-500.0,0.00028433,18]
[356063480,1741877482350,-500.0,0.00028433,18]
[356063481,1741877482360,-500.0,0.00028433,18]
[356063482,1741877482370,-1000.0,0.00028433,18]
[356063483,1741877482379,-3749.8,0.00028433,18]
[356063484,1741877482388,-2736.88,0.00028433,18]
[356063485,1741877482398,-298.05878155,0.00028433,18]
[356063486,1741877482407,-556.23,0.00028433,18]
[356063487,1741877482417,-500.0,0.00028433,18]
[356063488,1741877482426,-500.0,0.00028433,18]
[356063489,1741877482436,-500.0,0.00028433,18]
[356063490,1741877482445,-944.89,0.00028433,18]
[356063491,1741877482454,-500.0,0.00028433,18]
[356063492,1741877482463,-500.0,0.00028433,18]
[356063493,1741877482473,-500.0,0.00028433,18]
[356063494,1741877482483,-503.93,0.00028433,18]
[356063495,1741877482492,-500.0,0.00028433,18]
[356063496,1741877482502,-500.0,0.00028433,18]
[356063497,1741877482511,-500.0,0.00028433,18]
[356063498,1741877482521,-500.0,0.00028433,18]
[356063499,1741877482530,-180.1613689,0.00028433,18]
[356063500,1741877482541,-691.19,0.00028433,18]
[356063501,1741877482551,-1721.54,0.00028433,18]
[356063502,1741877482560,-500.0,0.00028433,18]
[356063503,1741877482570,-500.0,0.00028433,18]
[356063504,1741877482579,-500.0,0.00028433,18]
[356063505,1741877482588,-500.0,0.00028433,18]
[356063506,1741877482598,-565.02,0.00028433,18]
[356063507,1741877482607,-500.0,0.00028433,18]
[356063508,1741877482617,-617.67,0.00028433,18]
[356063509,1741877482626,-500.0,0.00028433,18]
[356063510,1741877482636,-583.61,0.00028433,18]
[356063511,1741877482645,-2839.76,0.00028433,18]
[356063512,1741877482656,-2263.25,0.00028433,18]
[356063513,1741877482665,-1507.84,0.00028433,18]
[356063514,1741877482675,-749.62,0.00028433,18]
[356063515,1741877482684,-580.97,0.00028433,18]
[356063516,1741877482694,-500.0,0.00028433,18]
[356063517,1741877482704,-500.0,0.00028433,18]
[356063518,1741877482713,-500.0,0.00028433,18]
[356063519,1741877482723,-500.0,0.00028433,18]
[356063520,1741877482733,-500.0,0.00028433,18]
[356063521,1741877482742,-500.0,0.00028433,18]
[356063522,1741877482751,-500.0,0.00028433,18]
[356063523,1741877482761,-500.0,0.00028433,18]
[356063524,1741877482770,-500.0,0.00028433,18]
[356063525,1741877482780,-500.0,0.00028433,18]
[356063526,1741877482791,-500.0,0.00028433,18]
[356063527,1741877482802,-591.54,0.00028433,18]
[356063528,1741877482811,-500.0,0.00028434,18]
[356063529,1741877482821,-500.0,0.00028434,18]
[356063530,1741877482831,-500.0,0.00028434,18]
[356063531,1741877482844,-500.0,0.00028434,18]
[356063532,1741877482854,-500.0,0.00028434,18]
[356063533,1741877482863,-500.0,0.00028434,18]
[356063534,1741877482873,-500.0,0.00028434,18]
[356063535,1741877482884,-500.0,0.00028434,18]
[356063536,1741877482894,-502.34,0.00028434,18]
[356063537,1741877482904,-502.34,0.00028434,18]
[356063538,1741877482913,-502.34,0.00028434,18]
[356063539,1741877482922,-502.34,0.00028434,18]
[356063540,1741877482933,-500.0,0.00028434,18]
[356063541,1741877482942,-500.0,0.00028434,18]
[356063542,1741877482951,-500.0,0.00028434,18]
[356063543,1741877482961,-500.0,0.00028434,18]
[356063544,1741877482970,-500.0,0.00028434,18]
[356063545,1741877482979,-500.0,0.00028434,18]
[356063546,1741877482988,-500.0,0.00028434,18]
[356063547,1741877482998,-500.0,0.00028434,18]
[356063548,1741877483007,-500.0,0.00028434,18]
[356063549,1741877483017,-500.0,0.00028434,18]
[356063550,1741877483026,-500.0,0.00028434,18]
[356063551,1741877483036,-500.0,0.00028434,18]
[356063552,1741877483046,-500.0,0.00028434,18]
[356063553,1741877483055,-500.0,0.00028434,18]
[356063554,1741877483066,-500.0,0.00028434,18]
[356063555,1741877483075,-500.0,0.00028434,18]
[356063556,1741877483085,-500.0,0.00028434,18]
[356063557,1741877483095,-500.0,0.00028434,18]
[356063558,1741877483104,-500.0,0.00028434,18]
[356063559,1741877483114,-500.0,0.00028434,18]
[356063560,1741877483123,-500.0,0.00028434,18]
[356063561,1741877483132,-500.0,0.00028434,18]
[356063562,1741877483141,-500.0,0.00028434,18]
[356063563,1741877483151,-500.0,0.00028434,18]
[356063564,1741877483160,-500.0,0.00028434,18]
[356063565,1741877483169,-500.0,0.00028434,18]
[356063566,1741877483179,-500.0,0.00028434,18]
[356063567,1741877483188,-500.0,0.00028434,18]
[356063568,1741877483197,-640.13,0.00028434,18]
[356063569,1741877483350,-640.13,0.00028434,18]
[356063570,1741877483360,-640.13,0.00028434,18]
[356063571,1741877483370,-640.13,0.00028434,18]
[356063572,1741877483379,-500.0,0.00028434,18]
[356063573,1741877483389,-500.0,0.00028434,18]
[356063574,1741877483398,-500.0,0.00028434,18]
[356063575,1741877483408,-500.0,0.00028434,18]
[356063576,1741877483417,-500.0,0.00028434,18]
[356063577,1741877483427,-511.3721124,0.00028434,18]
[356063578,1741877483436,-500.0,0.00028434,18]
[356063579,1741877483446,-500.0,0.00028434,18]
[356063580,1741877483455,-500.0,0.00028434,18]
[356063581,1741877483464,-500.0,0.00028434,18]
[356063582,1741877483473,-500.0,0.00028434,18]
[356063583,1741877483483,-500.0,0.00028434,18]
[356063584,1741877483492,-500.0,0.00028434,18]
[356063585,1741877483502,-500.0,0.00028434,18]
[356063586,1741877483512,-500.0,0.00028434,18]
[356063587,1741877483521,-500.0,0.00028434,18]
[356063588,1741877483531,-500.0,0.00028434,18]
[356063589,1741877483542,-500.0,0.00028434,18]
[356063590,1741877483552,-500.0,0.00028434,18]
[356063591,1741877483562,-500.0,0.00028434,18]
[356063592,1741877483571,-500.0,0.00028434,18]
[356063593,1741877483580,-500.0,0.00028434,18]
[356063594,1741877483590,-500.0,0.00028434,18]
[356063595,1741877483599,-500.0,0.00028434,18]
[356063596,1741877483608,-505.3071002,0.00028434,18]
[356063597,1741877483617,-500.0,0.00028434,18]
[356063598,1741877483626,-500.0,0.00028434,18]
[356063599,1741877483635,-500.0,0.00028434,18]
[356063600,1741877483644,-559.84232095,0.00028434,18]
[356063601,1741877483654,-500.0,0.00028434,18]
[356063602,1741877483663,-367.97502414,0.00028434,18]
[356063603,1741877483673,-727.13,0.00028434,18]
[356063604,1741877483682,-727.13,0.00028434,18]
[356063605,1741877483691,-727.13,0.00028434,18]
[356063606,1741877483702,-727.13,0.00028434,18]
[356063607,1741877483711,-500.0,0.00028434,18]
[356063608,1741877483721,-500.0,0.00028434,18]
[356063609,1741877483731,-500.0,0.00028434,18]
[356063610,1741877483742,-500.0,0.00028434,18]
[356063611,1741877483752,-500.0,0.00028434,18]
[356063612,1741877483761,-500.0,0.00028434,18]
[356063613,1741877483770,-500.0,0.00028434,18]
[356063614,1741877483780,-500.0,0.00028434,18]
[356063615,1741877483793,-500.0,0.00028434,18]
[356063616,1741877483804,-500.0,0.00028434,18]
[356063617,1741877483813,-500.0,0.00028434,18]
[356063618,1741877483824,-500.0,0.00028434,18]
[356063619,1741877483834,-622.0,0.00028434,18]
[356063620,1741877483846,-622.0,0.00028434,18]
[356063621,1741877483856,-622.0,0.00028434,18]
[356063622,1741877483866,-622.0,0.00028434,18]
[356063623,1741877483875,-500.0,0.00028434,18]
[356063624,1741877483885,-500.0,0.00028434,18]
[356063625,1741877483895,-500.0,0.00028434,18]
[356063626,1741877483905,-500.0,0.00028434,18]
[356063627,1741877483916,-598.91411717,0.00028434,18]
[356063628,1741877483926,-500.0,0.00028434,18]
[356063629,1741877483936,-500.0,0.00028434,18]
[356063630,1741877483946,-500.0,0.00028434,18]
[356063631,1741877483955,-500.0,0.00028434,18]
[356063632,1741877483965,-1222.98,0.00028434,18]
[356063633,1741877483975,-1222.98,0.00028434,18]
[356063634,1741877483985,-1222.98,0.00028434,18]
[356063635,1741877483995,-1222.98,0.00028434,18]
[356063636,1741877484005,-500.0,0.00028434,18]
[356063637,1741877484015,-500.0,0.00028434,18]
[356063638,1741877484025,-500.0,0.00028434,18]
[356063639,1741877484034,-500.0,0.00028434,18]
[356063640,1741877484046,-500.0,0.00028434,18]
[356063641,1741877484057,-500.0,0.00028434,18]
[356063642,1741877484068,-500.0,0.00028434,18]
[356063643,1741877484078,-500.0,0.00028434,18]
[356063644,1741877484088,-381.2316855,0.00028434,18]
[356063645,1741877484098,-500.0,0.00028434,18]
[356063646,1741877484108,-500.0,0.00028434,18]
[356063647,1741877484118,-500.0,0.00028434,18]
[356063648,1741877484127,-500.0,0.00028434,18]
[356063649,1741877484138,-500.0,0.00028434,18]
[356063650,1741877484148,-500.0,0.00028434,18]
[356063651,1741877484158,-500.0,0.00028434,18]
[356063652,1741877484168,-500.0,0.00028434,18]
[356063653,1741877484179,-658.91,0.00028434,18]
[356063654,1741877484188,-658.91,0.00028434,18]
[356063655,1741877484198,-658.91,0.00028434,18]
[356063656,1741877484208,-658.91,0.00028434,18]
[356063657,1741877484217,-500.0,0.00028434,18]
[356063658,1741877484227,-500.0,0.00028434,18]
[356063659,1741877484237,-500.0,0.00028434,18]
[356063660,1741877484247,-511.46191991,0.00028434,18]